[Event "Titled Tuesday Blitz February 21 Early 2023"]
[White "Lenderman, Aleksandr"]
[Black "Manukyan, Artyom"]
[WhiteFideId "2021285"]
[BlackFideId "13305786"]
[WhiteElo "2572"]
[BlackElo "2110"]
[Result "1-0"]
[Round "01"]
[TimeControl "180+2"]
[Date "2023.02.21"]
[WhiteClock "0:01:28"]
[BlackClock "0:00:10"]

1. Nf3 {[%clk 0:03:00]}  d5 {[%clk 0:02:59]} 2. e3 {[%clk 0:03:00]}  e6 {[%clk 0:03:00]} 3. c4 {[%clk 0:03:00]}  Nf6 {[%clk 0:03:01]} 4. b3 {[%clk 0:02:59]}  Be7 {[%clk 0:03:01]} 5. Bb2 {[%clk 0:02:59]}  dxc4 {[%clk 0:03:02]} 6. Bxc4 {[%clk 0:02:58]}  a6 {[%clk 0:03:02]} 7. O-O {[%clk 0:02:57]}  c5 {[%clk 0:03:02]} 8. d4 {[%clk 0:02:54]}  b5 {[%clk 0:03:00]} 9. Be2 {[%clk 0:02:54]}  O-O {[%clk 0:03:00]} 10. a4 {[%clk 0:02:51]}  b4 {[%clk 0:02:44]} 11. Nbd2 {[%clk 0:02:50]}  Bb7 {[%clk 0:02:43]} 12. Rc1 {[%clk 0:02:47]}  Nbd7 {[%clk 0:02:40]} 13. Nc4 {[%clk 0:02:46]}  Rc8 {[%clk 0:02:39]} 14. Nfe5 {[%clk 0:02:35]}  Nxe5 {[%clk 0:02:36]} 15. Nxe5 {[%clk 0:02:31]}  Nd7 {[%clk 0:02:17]} 16. Bf3 {[%clk 0:02:18]}  Bxf3 {[%clk 0:02:14]} 17. Nxf3 {[%clk 0:02:19]}  Bf6 {[%clk 0:02:07]} 18. Qe2 {[%clk 0:02:17]}  Qb6 {[%clk 0:01:39]} 19. dxc5 {[%clk 0:02:13]}  Rxc5 {[%clk 0:01:36]} 20. Rxc5 {[%clk 0:02:11]}  Nxc5 {[%clk 0:01:34]} 21. Bxf6 {[%clk 0:02:10]}  gxf6 {[%clk 0:01:34]} 22. Nd4 {[%clk 0:02:08]}  f5 {[%clk 0:01:26]} 23. Rc1 {[%clk 0:02:07]}  a5 {[%clk 0:01:18]} 24. Qb5 {[%clk 0:02:02]}  Qxb5 {[%clk 0:01:18]} 25. axb5 {[%clk 0:02:02]}  Ne4 {[%clk 0:00:39]} 26. Rc7 {[%clk 0:01:48]}  Rb8 {[%clk 0:00:36]} 27. Ra7 {[%clk 0:01:32]}  Nd2 {[%clk 0:00:13]} 28. Rxa5 {[%clk 0:01:28]}  e5 {[%clk 0:00:13]} 29. Nxf5 {[%clk 0:01:28]}  Nxb3 {[%clk 0:00:12]} 30. Ra4 {[%clk 0:01:28]}  Rxb5 {[%clk 0:00:10]} 31. Ra8+ {[%clk 0:01:28]} 1-0


[Site "https://www.chess.com"]

[Event "Titled Tuesday Blitz February 21 Early 2023"]
[White "Van Foreest, Jorden"]
[Black "Bethke, Richard"]
[WhiteFideId "1039784"]
[BlackFideId "12959243"]
[WhiteElo "2689"]
[BlackElo "2382"]
[Result "1-0"]
[Round "01"]
[TimeControl "180+2"]
[Date "2023.02.21"]
[WhiteClock "0:00:17"]
[BlackClock "0:00:01"]

1. e4 {[%clk 0:02:52]}  c6 {[%clk 0:02:59]} 2. d4 {[%clk 0:02:51]}  d5 {[%clk 0:03:00]} 3. e5 {[%clk 0:02:52]}  Bf5 {[%clk 0:02:59]} 4. g4 {[%clk 0:02:52]}  Bg6 {[%clk 0:02:59]} 5. Nf3 {[%clk 0:02:46]}  h5 {[%clk 0:02:58]} 6. e6 {[%clk 0:02:39]}  Nf6 {[%clk 0:02:39]} 7. Ne5 {[%clk 0:02:33]}  hxg4 {[%clk 0:02:19]} 8. Bd3 {[%clk 0:02:27]}  Qd6 {[%clk 0:02:10]} 9. exf7+ {[%clk 0:02:00]}  Bxf7 {[%clk 0:02:09]} 10. Bf4 {[%clk 0:02:01]}  g5 {[%clk 0:01:51]} 11. Nxf7 {[%clk 0:01:56]}  Qe6+ {[%clk 0:01:51]} 12. Ne5 {[%clk 0:01:46]}  gxf4 {[%clk 0:01:50]} 13. Bg6+ {[%clk 0:01:46]}  Kd8 {[%clk 0:01:50]} 14. Qe2 {[%clk 0:01:38]}  Kc7 {[%clk 0:01:41]} 15. Bf7 {[%clk 0:01:37]}  Qf5 {[%clk 0:01:36]} 16. Bg6 {[%clk 0:01:37]}  Qe6 {[%clk 0:01:35]} 17. Nc3 {[%clk 0:01:38]}  f3 {[%clk 0:01:31]} 18. Qe3 {[%clk 0:01:38]}  Bh6 {[%clk 0:01:31]} 19. Qd3 {[%clk 0:01:37]}  Nbd7 {[%clk 0:01:29]} 20. Qf5 {[%clk 0:01:28]}  Nf8 {[%clk 0:00:43]} 21. Kf1 {[%clk 0:01:22]}  Qxf5 {[%clk 0:00:26]} 22. Bxf5 {[%clk 0:01:23]}  Rg8 {[%clk 0:00:27]} 23. Rg1 {[%clk 0:01:14]}  Bf4 {[%clk 0:00:26]} 24. Nxg4 {[%clk 0:01:13]}  N8d7 {[%clk 0:00:19]} 25. Re1 {[%clk 0:01:08]}  Rg5 {[%clk 0:00:10]} 26. Bxd7 {[%clk 0:01:04]}  Nxd7 {[%clk 0:00:11]} 27. Rxe7 {[%clk 0:01:03]}  Rag8 {[%clk 0:00:10]} 28. Rxd7+ {[%clk 0:01:03]}  Kc8 {[%clk 0:00:08]} 29. h3 {[%clk 0:00:34]}  Kxd7 {[%clk 0:00:02]} 30. Nf6+ {[%clk 0:00:33]}  Ke6 {[%clk 0:00:02]} 31. Nxg8 {[%clk 0:00:34]}  Rxg1+ {[%clk 0:00:03]} 32. Kxg1 {[%clk 0:00:34]}  Kf7 {[%clk 0:00:04]} 33. Kf1 {[%clk 0:00:24]}  Kxg8 {[%clk 0:00:03]} 34. Nb1 {[%clk 0:00:23]}  Bc1 {[%clk 0:00:02]} 35. b3 {[%clk 0:00:23]}  Kg7 {[%clk 0:00:01]} 36. Ke1 {[%clk 0:00:23]}  Kg6 {[%clk 0:00:02]} 37. Nd2 {[%clk 0:00:24]}  Bb2 {[%clk 0:00:01]} 38. Nxf3 {[%clk 0:00:24]}  Kf5 {[%clk 0:00:01]} 39. Ke2 {[%clk 0:00:22]}  Kf4 {[%clk 0:00:01]} 40. h4 {[%clk 0:00:23]}  Kg4 {[%clk 0:00:01]} 41. a4 {[%clk 0:00:21]}  a5 {[%clk 0:00:01]} 42. h5 {[%clk 0:00:16]}  Kxh5 {[%clk 0:00:01]} 43. Kd3 {[%clk 0:00:17]}  Kg4 {[%clk 0:00:01]} 44. Ne5+ {[%clk 0:00:18]}  Kf5 {[%clk 0:00:01]} 45. Nd7 {[%clk 0:00:18]}  Ba3 {[%clk 0:00:01]} 46. c4 {[%clk 0:00:16]}  Bd6 {[%clk 0:00:01]} 47. Nc5 {[%clk 0:00:15]}  Bxc5 {[%clk 0:00:01]} 48. dxc5 {[%clk 0:00:16]}  Ke5 {[%clk 0:00:02]} 49. Ke3 {[%clk 0:00:14]}  dxc4 {[%clk 0:00:02]} 50. bxc4 {[%clk 0:00:15]}  Kf5 {[%clk 0:00:02]} 51. f4 {[%clk 0:00:15]}  Ke6 {[%clk 0:00:02]} 52. Ke4 {[%clk 0:00:16]}  Kf6 {[%clk 0:00:02]} 53. f5 {[%clk 0:00:16]}  Kf7 {[%clk 0:00:02]} 54. Ke5 {[%clk 0:00:17]}  Ke7 {[%clk 0:00:03]} 55. f6+ {[%clk 0:00:17]}  Kd7 {[%clk 0:00:03]} 56. Kf5 {[%clk 0:00:17]}  Kc7 {[%clk 0:00:01]} 57. f7 {[%clk 0:00:17]} 1-0


[Site "https://www.chess.com"]

[Event "Titled Tuesday Blitz February 21 Early 2023"]
[White "Shimanov, Aleksandr"]
[Black "Padmini, Rout"]
[WhiteFideId "4198603"]
[BlackFideId "5029295"]
[WhiteElo "2581"]
[BlackElo "2375"]
[Result "0-1"]
[Round "01"]
[TimeControl "180+2"]
[Date "2023.02.21"]
[WhiteClock "0:00:01"]
[BlackClock "0:00:14"]

1. e4 {[%clk 0:02:56]}  c5 {[%clk 0:02:55]} 2. Nf3 {[%clk 0:02:55]}  e6 {[%clk 0:02:54]} 3. c3 {[%clk 0:02:53]}  Nf6 {[%clk 0:02:52]} 4. e5 {[%clk 0:02:52]}  Nd5 {[%clk 0:02:46]} 5. d4 {[%clk 0:02:53]}  cxd4 {[%clk 0:02:44]} 6. cxd4 {[%clk 0:02:54]}  d6 {[%clk 0:02:34]} 7. Bc4 {[%clk 0:02:53]}  Be7 {[%clk 0:02:33]} 8. O-O {[%clk 0:02:53]}  O-O {[%clk 0:02:33]} 9. Qe2 {[%clk 0:02:53]}  b6 {[%clk 0:02:28]} 10. Bxd5 {[%clk 0:02:44]}  exd5 {[%clk 0:02:29]} 11. Nc3 {[%clk 0:02:45]}  Ba6 {[%clk 0:02:19]} 12. Qc2 {[%clk 0:02:32]}  Bxf1 {[%clk 0:02:17]} 13. Kxf1 {[%clk 0:02:33]}  dxe5 {[%clk 0:02:14]} 14. Nxe5 {[%clk 0:02:33]}  f6 {[%clk 0:02:09]} 15. Nf3 {[%clk 0:02:31]}  Qd7 {[%clk 0:02:08]} 16. Be3 {[%clk 0:02:29]}  Nc6 {[%clk 0:02:08]} 17. Rd1 {[%clk 0:02:23]}  Rac8 {[%clk 0:02:07]} 18. Qd3 {[%clk 0:02:18]}  Na5 {[%clk 0:01:58]} 19. b3 {[%clk 0:02:14]}  Rfd8 {[%clk 0:01:55]} 20. Ne2 {[%clk 0:02:13]}  Nc6 {[%clk 0:01:54]} 21. Nf4 {[%clk 0:02:05]}  Nb4 {[%clk 0:01:53]} 22. Qb1 {[%clk 0:02:06]}  Nc2 {[%clk 0:01:46]} 23. Rd2 {[%clk 0:01:50]}  Nxe3+ {[%clk 0:01:44]} 24. fxe3 {[%clk 0:01:50]}  Bd6 {[%clk 0:01:44]} 25. Ne2 {[%clk 0:01:46]}  Rc7 {[%clk 0:01:33]} 26. Qd3 {[%clk 0:01:33]}  Rdc8 {[%clk 0:01:31]} 27. Kf2 {[%clk 0:01:30]}  Qg4 {[%clk 0:01:27]} 28. h3 {[%clk 0:01:29]}  Qe4 {[%clk 0:01:26]} 29. Qb5 {[%clk 0:01:09]}  Re7 {[%clk 0:01:16]} 30. Rd3 {[%clk 0:00:55]}  Rc2 {[%clk 0:01:16]} 31. a4 {[%clk 0:00:50]}  h5 {[%clk 0:01:08]} 32. Ke1 {[%clk 0:00:47]}  Kh7 {[%clk 0:00:31]} 33. Kd1 {[%clk 0:00:46]}  Rec7 {[%clk 0:00:28]} 34. Ne1 {[%clk 0:00:37]}  R2c6 {[%clk 0:00:26]} 35. Nf3 {[%clk 0:00:25]}  a5 {[%clk 0:00:25]} 36. Ke1 {[%clk 0:00:14]}  h4 {[%clk 0:00:25]} 37. Kf1 {[%clk 0:00:12]}  Bg3 {[%clk 0:00:24]} 38. Qa6 {[%clk 0:00:03]}  Rc2 {[%clk 0:00:18]} 39. Qb5 {[%clk 0:00:02]}  Ra2 {[%clk 0:00:18]} 40. Rd1 {[%clk 0:00:03]}  Rcc2 {[%clk 0:00:15]} 41. Nfg1 {[%clk 0:00:01]}  Qf5+ {[%clk 0:00:14]} 42. Nf4 {[%clk 0:00:01]}  Rf2+ {[%clk 0:00:14]} 43. Ke1 {[%clk 0:00:01]}  Bxf4 {[%clk 0:00:14]} 0-1


[Site "https://www.chess.com"]

[Event "Titled Tuesday Blitz February 21 Early 2023"]
[White "Ferreira, Vitor Hugo Vieira"]
[Black "Erigaisi Arjun"]
[WhiteFideId "2119765"]
[BlackFideId "35009192"]
[WhiteElo "2128"]
[BlackElo "2701"]
[Result "0-1"]
[Round "01"]
[TimeControl "180+2"]
[Date "2023.02.21"]
[WhiteClock "0:00:09"]
[BlackClock "0:01:29"]

1. Nf3 {[%clk 0:02:54]}  g6 {[%clk 0:02:58]} 2. g3 {[%clk 0:02:50]}  Bg7 {[%clk 0:02:58]} 3. Bg2 {[%clk 0:02:01]}  e5 {[%clk 0:02:53]} 4. O-O {[%clk 0:02:02]}  f5 {[%clk 0:02:52]} 5. d3 {[%clk 0:01:59]}  d5 {[%clk 0:02:52]} 6. c4 {[%clk 0:01:50]}  dxc4 {[%clk 0:02:47]} 7. Qa4+ {[%clk 0:01:49]}  Nc6 {[%clk 0:02:33]} 8. Qxc4 {[%clk 0:01:44]}  Qe7 {[%clk 0:02:28]} 9. Nc3 {[%clk 0:01:40]}  Nf6 {[%clk 0:02:25]} 10. b3 {[%clk 0:01:33]}  Be6 {[%clk 0:02:24]} 11. Qa4 {[%clk 0:01:32]}  O-O-O {[%clk 0:02:02]} 12. Ba3 {[%clk 0:01:27]}  Qd7 {[%clk 0:02:01]} 13. Rac1 {[%clk 0:01:13]}  Kb8 {[%clk 0:02:00]} 14. Nb5 {[%clk 0:01:11]}  a6 {[%clk 0:01:59]} 15. Nc3 {[%clk 0:00:41]}  Rhe8 {[%clk 0:01:52]} 16. b4 {[%clk 0:00:39]}  Nd4 {[%clk 0:01:52]} 17. Qd1 {[%clk 0:00:24]}  Nd5 {[%clk 0:01:43]} 18. Nxd4 {[%clk 0:00:19]}  exd4 {[%clk 0:01:43]} 19. Nxd5 {[%clk 0:00:19]}  Bxd5 {[%clk 0:01:44]} 20. Bxd5 {[%clk 0:00:20]}  Qxd5 {[%clk 0:01:45]} 21. Qc2 {[%clk 0:00:19]}  Rd7 {[%clk 0:01:43]} 22. Rfe1 {[%clk 0:00:18]}  h5 {[%clk 0:01:42]} 23. h4 {[%clk 0:00:17]}  Bh6 {[%clk 0:01:41]} 24. Rb1 {[%clk 0:00:16]}  f4 {[%clk 0:01:41]} 25. Bc1 {[%clk 0:00:15]}  Rf8 {[%clk 0:01:35]} 26. Qc4 {[%clk 0:00:12]}  fxg3 {[%clk 0:01:32]} 27. fxg3 {[%clk 0:00:10]}  Bxc1 {[%clk 0:01:30]} 28. Qxd5 {[%clk 0:00:09]}  Be3+ {[%clk 0:01:29]} 0-1


[Site "https://www.chess.com"]

[Event "Titled Tuesday Blitz February 21 Early 2023"]
[White "Tang, Andrew"]
[Black "Ilinca Ilinca, Felix Antonio"]
[WhiteFideId "2059630"]
[BlackFideId "54764998"]
[WhiteElo "2523"]
[BlackElo "2266"]
[Result "0-1"]
[Round "01"]
[TimeControl "180+2"]
[Date "2023.02.21"]
[WhiteClock "0:00:05"]
[BlackClock "0:00:14"]

1. d4 {[%clk 0:02:59]}  d5 {[%clk 0:02:58]} 2. Bf4 {[%clk 0:02:56]}  Nf6 {[%clk 0:02:57]} 3. e3 {[%clk 0:02:49]}  c5 {[%clk 0:02:56]} 4. dxc5 {[%clk 0:02:31]}  Nc6 {[%clk 0:02:48]} 5. Bb5 {[%clk 0:02:29]}  Qa5+ {[%clk 0:02:11]} 6. Nc3 {[%clk 0:02:29]}  a6 {[%clk 0:02:11]} 7. Bxc6+ {[%clk 0:02:29]}  bxc6 {[%clk 0:02:10]} 8. Nf3 {[%clk 0:02:21]}  Qxc5 {[%clk 0:02:02]} 9. O-O {[%clk 0:02:19]}  e6 {[%clk 0:01:59]} 10. Na4 {[%clk 0:02:16]}  Qb5 {[%clk 0:01:53]} 11. c4 {[%clk 0:02:06]}  dxc4 {[%clk 0:01:48]} 12. Nd4 {[%clk 0:02:05]}  Qb7 {[%clk 0:01:40]} 13. Rc1 {[%clk 0:01:59]}  c5 {[%clk 0:01:35]} 14. Nf3 {[%clk 0:01:56]}  Bd7 {[%clk 0:01:30]} 15. Ne5 {[%clk 0:01:55]}  Bb5 {[%clk 0:01:25]} 16. Nxc4 {[%clk 0:00:59]}  Be7 {[%clk 0:01:22]} 17. Qc2 {[%clk 0:00:27]}  O-O {[%clk 0:01:15]} 18. Rfd1 {[%clk 0:00:21]}  Rfd8 {[%clk 0:00:52]} 19. Na5 {[%clk 0:00:18]}  Qe4 {[%clk 0:00:39]} 20. Qxe4 {[%clk 0:00:17]}  Nxe4 {[%clk 0:00:40]} 21. Nb6 {[%clk 0:00:17]}  Rxd1+ {[%clk 0:00:38]} 22. Rxd1 {[%clk 0:00:17]}  Rd8 {[%clk 0:00:39]} 23. Rc1 {[%clk 0:00:17]}  Rd2 {[%clk 0:00:35]} 24. f3 {[%clk 0:00:16]}  Nf6 {[%clk 0:00:26]} 25. Nbc4 {[%clk 0:00:15]}  Rd8 {[%clk 0:00:24]} 26. e4 {[%clk 0:00:15]}  Rd3 {[%clk 0:00:20]} 27. Kf2 {[%clk 0:00:13]}  Nh5 {[%clk 0:00:19]} 28. Be3 {[%clk 0:00:13]}  f5 {[%clk 0:00:19]} 29. exf5 {[%clk 0:00:09]}  exf5 {[%clk 0:00:20]} 30. Nb3 {[%clk 0:00:08]}  Rd5 {[%clk 0:00:18]} 31. g3 {[%clk 0:00:07]}  Nf6 {[%clk 0:00:15]} 32. Nb6 {[%clk 0:00:07]}  Re5 {[%clk 0:00:14]} 33. Rc3 {[%clk 0:00:05]}  g5 {[%clk 0:00:11]} 34. Nxc5 {[%clk 0:00:05]}  f4 {[%clk 0:00:11]} 35. gxf4 {[%clk 0:00:05]}  gxf4 {[%clk 0:00:12]} 36. Bd4 {[%clk 0:00:04]}  Rh5 {[%clk 0:00:12]} 37. Kg1 {[%clk 0:00:04]}  Nd5 {[%clk 0:00:12]} 38. Nxd5 {[%clk 0:00:04]}  Rxd5 {[%clk 0:00:13]} 39. Nb3 {[%clk 0:00:04]}  Kf7 {[%clk 0:00:12]} 40. Rc2 {[%clk 0:00:04]}  Rg5+ {[%clk 0:00:13]} 41. Rg2 {[%clk 0:00:05]}  Rxg2+ {[%clk 0:00:13]} 42. Kxg2 {[%clk 0:00:06]}  Ke6 {[%clk 0:00:13]} 43. Kh3 {[%clk 0:00:06]}  Kf5 {[%clk 0:00:13]} 44. Bc3 {[%clk 0:00:05]}  Bf1# {[%clk 0:00:14]} 0-1


[Site "https://www.chess.com"]

[Event "Titled Tuesday Blitz February 21 Early 2023"]
[White "Baches Garcia, Guillermo"]
[Black "Lazavik, Denis"]
[WhiteFideId "2209764"]
[BlackFideId "13515110"]
[WhiteElo "2327"]
[BlackElo "2544"]
[Result "0-1"]
[Round "01"]
[TimeControl "180+2"]
[Date "2023.02.21"]
[WhiteClock "0:00:01"]
[BlackClock "0:00:12"]

1. e4 {[%clk 0:03:00]}  c5 {[%clk 0:03:00]} 2. Nf3 {[%clk 0:02:59]}  e6 {[%clk 0:03:00]} 3. d4 {[%clk 0:02:59]}  cxd4 {[%clk 0:03:00]} 4. Nxd4 {[%clk 0:02:59]}  Nc6 {[%clk 0:03:01]} 5. Nc3 {[%clk 0:02:59]}  Qc7 {[%clk 0:03:02]} 6. Be3 {[%clk 0:02:59]}  a6 {[%clk 0:03:02]} 7. g4 {[%clk 0:02:59]}  b5 {[%clk 0:02:57]} 8. Nxc6 {[%clk 0:02:58]}  Qxc6 {[%clk 0:02:58]} 9. Qd2 {[%clk 0:02:58]}  b4 {[%clk 0:02:56]} 10. Ne2 {[%clk 0:02:58]}  Qxe4 {[%clk 0:02:56]} 11. Rg1 {[%clk 0:02:54]}  Qc6 {[%clk 0:02:54]} 12. Bg2 {[%clk 0:02:42]}  d5 {[%clk 0:02:54]} 13. O-O-O {[%clk 0:02:41]}  Bb7 {[%clk 0:02:51]} 14. g5 {[%clk 0:02:27]}  Ne7 {[%clk 0:02:22]} 15. f4 {[%clk 0:02:07]}  O-O-O {[%clk 0:01:59]} 16. Nd4 {[%clk 0:01:59]}  Qc7 {[%clk 0:01:58]} 17. Kb1 {[%clk 0:01:53]}  Kb8 {[%clk 0:01:45]} 18. Rc1 {[%clk 0:01:38]}  Nc8 {[%clk 0:01:32]} 19. c3 {[%clk 0:01:31]}  b3 {[%clk 0:01:31]} 20. Nxb3 {[%clk 0:01:19]}  Nd6 {[%clk 0:01:28]} 21. Qf2 {[%clk 0:00:39]}  Nc4 {[%clk 0:01:25]} 22. Bd4 {[%clk 0:00:34]}  Rg8 {[%clk 0:01:16]} 23. Nd2 {[%clk 0:00:30]}  Nxd2+ {[%clk 0:01:10]} 24. Qxd2 {[%clk 0:00:29]}  Bd6 {[%clk 0:01:10]} 25. Rgf1 {[%clk 0:00:24]}  Rc8 {[%clk 0:00:55]} 26. Qe3 {[%clk 0:00:16]}  Qd7 {[%clk 0:00:42]} 27. Be5 {[%clk 0:00:12]}  Ka8 {[%clk 0:00:38]} 28. Rfd1 {[%clk 0:00:12]}  f6 {[%clk 0:00:35]} 29. gxf6 {[%clk 0:00:12]}  gxf6 {[%clk 0:00:35]} 30. Bxd6 {[%clk 0:00:11]}  Rxg2 {[%clk 0:00:31]} 31. Bc5 {[%clk 0:00:10]}  Qb5 {[%clk 0:00:30]} 32. Ba3 {[%clk 0:00:09]}  Re8 {[%clk 0:00:25]} 33. Qd4 {[%clk 0:00:08]}  e5 {[%clk 0:00:23]} 34. fxe5 {[%clk 0:00:07]}  fxe5 {[%clk 0:00:24]} 35. Qh4 {[%clk 0:00:06]}  Qd7 {[%clk 0:00:22]} 36. Qh6 {[%clk 0:00:05]}  Rg6 {[%clk 0:00:20]} 37. Qe3 {[%clk 0:00:04]}  Qf5+ {[%clk 0:00:20]} 38. Ka1 {[%clk 0:00:04]}  Rg2 {[%clk 0:00:17]} 39. Rf1 {[%clk 0:00:04]}  Qg6 {[%clk 0:00:17]} 40. Qc5 {[%clk 0:00:04]}  Rc8 {[%clk 0:00:16]} 41. Qa5 {[%clk 0:00:04]}  Rxh2 {[%clk 0:00:14]} 42. Bc5 {[%clk 0:00:03]}  Qc6 {[%clk 0:00:12]} 43. Ba3 {[%clk 0:00:03]}  d4 {[%clk 0:00:12]} 44. Kb1 {[%clk 0:00:02]}  d3 {[%clk 0:00:12]} 45. Qxe5 {[%clk 0:00:01]}  Re2 {[%clk 0:00:11]} 46. Qd4 {[%clk 0:00:01]}  d2 {[%clk 0:00:12]} 0-1


[Site "https://www.chess.com"]

[Event "Titled Tuesday Blitz February 21 Early 2023"]
[White "Korobov, Anton"]
[Black "Sai Han Thiha"]
[WhiteFideId "14105730"]
[BlackFideId "13012290"]
[WhiteElo "2664"]
[BlackElo "2070"]
[Result "1-0"]
[Round "01"]
[TimeControl "180+2"]
[Date "2023.02.21"]
[WhiteClock "0:00:39"]
[BlackClock "0:00:03"]

1. d4 {[%clk 0:02:58]}  Nf6 {[%clk 0:03:00]} 2. c4 {[%clk 0:02:57]}  e6 {[%clk 0:03:00]} 3. Nf3 {[%clk 0:02:57]}  Bb4+ {[%clk 0:03:01]} 4. Nbd2 {[%clk 0:02:57]}  b6 {[%clk 0:03:01]} 5. a3 {[%clk 0:02:57]}  Bxd2+ {[%clk 0:03:01]} 6. Qxd2 {[%clk 0:02:58]}  Bb7 {[%clk 0:03:02]} 7. e3 {[%clk 0:02:58]}  a5 {[%clk 0:03:02]} 8. b3 {[%clk 0:02:57]}  d6 {[%clk 0:03:01]} 9. Bb2 {[%clk 0:02:57]}  Nbd7 {[%clk 0:03:02]} 10. Be2 {[%clk 0:02:58]}  O-O {[%clk 0:03:02]} 11. O-O {[%clk 0:02:58]}  Qe7 {[%clk 0:03:03]} 12. Rfd1 {[%clk 0:02:58]}  Rfc8 {[%clk 0:02:42]} 13. Ne1 {[%clk 0:02:50]}  c5 {[%clk 0:02:35]} 14. dxc5 {[%clk 0:02:40]}  dxc5 {[%clk 0:01:44]} 15. Qd6 {[%clk 0:02:35]}  Qxd6 {[%clk 0:01:10]} 16. Rxd6 {[%clk 0:02:36]}  Bc6 {[%clk 0:01:10]} 17. f3 {[%clk 0:02:31]}  Kf8 {[%clk 0:01:09]} 18. Rd2 {[%clk 0:02:27]}  Ke7 {[%clk 0:01:07]} 19. Nd3 {[%clk 0:02:24]}  Rd8 {[%clk 0:00:56]} 20. Rad1 {[%clk 0:02:19]}  Ne8 {[%clk 0:00:55]} 21. h4 {[%clk 0:02:11]}  f6 {[%clk 0:00:53]} 22. Nf4 {[%clk 0:02:03]}  Nf8 {[%clk 0:00:49]} 23. g4 {[%clk 0:01:51]}  Rxd2 {[%clk 0:00:48]} 24. Rxd2 {[%clk 0:01:52]}  Rd8 {[%clk 0:00:49]} 25. Rxd8 {[%clk 0:01:51]}  Kxd8 {[%clk 0:00:50]} 26. Kf2 {[%clk 0:01:46]}  Ke7 {[%clk 0:00:50]} 27. Bc3 {[%clk 0:01:41]}  Kd6 {[%clk 0:00:49]} 28. g5 {[%clk 0:01:36]}  e5 {[%clk 0:00:23]} 29. Nh5 {[%clk 0:01:33]}  Ke6 {[%clk 0:00:23]} 30. f4 {[%clk 0:01:28]}  Nd7 {[%clk 0:00:17]} 31. Bg4+ {[%clk 0:01:12]}  f5 {[%clk 0:00:17]} 32. Be2 {[%clk 0:01:11]}  g6 {[%clk 0:00:17]} 33. Ng3 {[%clk 0:01:10]}  e4 {[%clk 0:00:15]} 34. h5 {[%clk 0:01:11]}  Nd6 {[%clk 0:00:11]} 35. h6 {[%clk 0:01:10]}  Kf7 {[%clk 0:00:11]} 36. Nf1 {[%clk 0:01:06]}  Bb7 {[%clk 0:00:10]} 37. Nd2 {[%clk 0:01:06]}  Ba6 {[%clk 0:00:09]} 38. b4 {[%clk 0:01:07]}  axb4 {[%clk 0:00:08]} 39. axb4 {[%clk 0:01:08]}  Bb7 {[%clk 0:00:08]} 40. Ke1 {[%clk 0:01:06]}  Ba6 {[%clk 0:00:08]} 41. Kd1 {[%clk 0:01:06]}  Bb7 {[%clk 0:00:09]} 42. Kc2 {[%clk 0:01:07]}  Ba6 {[%clk 0:00:10]} 43. Kb3 {[%clk 0:01:06]}  Ke6 {[%clk 0:00:08]} 44. Nb1 {[%clk 0:00:58]}  Bb7 {[%clk 0:00:08]} 45. Na3 {[%clk 0:00:57]}  Ba6 {[%clk 0:00:07]} 46. Bg7 {[%clk 0:00:47]}  Kf7 {[%clk 0:00:06]} 47. bxc5 {[%clk 0:00:45]}  bxc5 {[%clk 0:00:03]} 48. Ka4 {[%clk 0:00:40]}  Ke6 {[%clk 0:00:03]} 49. Ka5 {[%clk 0:00:41]}  Bb7 {[%clk 0:00:03]} 50. Nb5 {[%clk 0:00:39]} 1-0


[Site "https://www.chess.com"]

[Event "Titled Tuesday Blitz February 21 Early 2023"]
[White "Navara, David"]
[Black "Tworuszka, Michal"]
[WhiteFideId "309095"]
[BlackFideId "1117858"]
[WhiteElo "2678"]
[BlackElo "2260"]
[Result "1-0"]
[Round "01"]
[TimeControl "180+2"]
[Date "2023.02.21"]
[WhiteClock "0:00:17"]
[BlackClock "0:00:04"]

1. e4 {[%clk 0:03:00]}  c5 {[%clk 0:02:37]} 2. Nf3 {[%clk 0:03:00]}  d6 {[%clk 0:02:32]} 3. d4 {[%clk 0:02:59]}  cxd4 {[%clk 0:02:33]} 4. Nxd4 {[%clk 0:02:59]}  Nf6 {[%clk 0:02:33]} 5. Nc3 {[%clk 0:03:00]}  a6 {[%clk 0:02:31]} 6. g3 {[%clk 0:03:00]}  e5 {[%clk 0:02:29]} 7. Nde2 {[%clk 0:03:00]}  Be7 {[%clk 0:02:09]} 8. Bg2 {[%clk 0:03:00]}  O-O {[%clk 0:01:40]} 9. O-O {[%clk 0:02:59]}  Nbd7 {[%clk 0:01:39]} 10. a4 {[%clk 0:02:59]}  b6 {[%clk 0:01:35]} 11. Nd5 {[%clk 0:02:57]}  Nxd5 {[%clk 0:01:32]} 12. Qxd5 {[%clk 0:02:57]}  Rb8 {[%clk 0:01:30]} 13. Nc3 {[%clk 0:02:37]}  Bb7 {[%clk 0:01:29]} 14. Qd3 {[%clk 0:02:34]}  Nc5 {[%clk 0:01:28]} 15. Qe2 {[%clk 0:02:29]}  Qc7 {[%clk 0:01:25]} 16. Rd1 {[%clk 0:02:27]}  Ne6 {[%clk 0:01:24]} 17. Be3 {[%clk 0:02:20]}  Rfc8 {[%clk 0:01:21]} 18. h4 {[%clk 0:02:17]}  Kh8 {[%clk 0:01:11]} 19. Bh3 {[%clk 0:01:59]}  Rd8 {[%clk 0:00:57]} 20. Nd5 {[%clk 0:01:52]}  Bxd5 {[%clk 0:00:53]} 21. Rxd5 {[%clk 0:01:53]}  Nc5 {[%clk 0:00:50]} 22. Qf3 {[%clk 0:01:41]}  Rf8 {[%clk 0:00:45]} 23. h5 {[%clk 0:01:10]}  h6 {[%clk 0:00:43]} 24. Bf5 {[%clk 0:01:10]}  Nd7 {[%clk 0:00:33]} 25. Qe2 {[%clk 0:01:07]}  Nf6 {[%clk 0:00:31]} 26. Rd3 {[%clk 0:01:04]}  Nd7 {[%clk 0:00:25]} 27. Rc3 {[%clk 0:00:54]}  Qb7 {[%clk 0:00:21]} 28. Bxd7 {[%clk 0:00:43]}  Qxd7 {[%clk 0:00:22]} 29. Qxa6 {[%clk 0:00:43]}  Qg4 {[%clk 0:00:20]} 30. Bxb6 {[%clk 0:00:36]}  Qxe4 {[%clk 0:00:16]} 31. a5 {[%clk 0:00:36]}  d5 {[%clk 0:00:13]} 32. Qd3 {[%clk 0:00:35]}  Qg4 {[%clk 0:00:13]} 33. Qxd5 {[%clk 0:00:33]}  Qxh5 {[%clk 0:00:12]} 34. Rc7 {[%clk 0:00:24]}  Bf6 {[%clk 0:00:09]} 35. Kg2 {[%clk 0:00:24]}  Qf5 {[%clk 0:00:08]} 36. Rc6 {[%clk 0:00:22]}  Rfc8 {[%clk 0:00:08]} 37. a6 {[%clk 0:00:20]}  Rxc6 {[%clk 0:00:07]} 38. Qxc6 {[%clk 0:00:21]}  Rc8 {[%clk 0:00:07]} 39. Qb7 {[%clk 0:00:14]}  Rxc2 {[%clk 0:00:06]} 40. a7 {[%clk 0:00:14]}  Bg5 {[%clk 0:00:01]} 41. a8=Q+ {[%clk 0:00:14]}  Kh7 {[%clk 0:00:01]} 42. Qe4 {[%clk 0:00:15]}  Qxe4+ {[%clk 0:00:02]} 43. Qxe4+ {[%clk 0:00:15]}  g6 {[%clk 0:00:02]} 44. Qxc2 {[%clk 0:00:16]}  f5 {[%clk 0:00:03]} 45. Ra7+ {[%clk 0:00:16]}  Kg8 {[%clk 0:00:04]} 46. Qc8+ {[%clk 0:00:16]}  Bd8 {[%clk 0:00:04]} 47. Qxd8# {[%clk 0:00:17]} 1-0


[Site "https://www.chess.com"]